Cogmind - Beta 10.1 @@@ ROGUE MODE // 2020.09.19 @ 20:26:43 // Winter2019/RPGLIKE Player: Torako Result: Destroyed by 8R-AWN with 8R-AWN's Boregun Performance ------------- Evolutions (0) 0 Regions Visited (3) 600 Robots Destroyed (40) 200 Value Destroyed (614) 614 Prototype IDs (23) 460 Alien Tech Used (0) 0 Bonus (-54) -54 TOTAL SCORE: 1820 Bonus ------- Aligned with FarCom 300 Friendly Fire -354 Cogmind --------- Core Integrity 0/750 Matter 250/300 Energy 83/100 System Corruption 3% Temperature Cool (0) Movement Hovering (60) Location -10/Exiles Parts ------- > --- POWER (1) -------- (None) > --- PROPULSION (3) --- Improved Hover Unit > --- UTILITY (3) ------ Improved Signal Interpreter Improved Terrain Scanner Weapon Shielding > --- WEAPON (2) ------- Rocket Launcher Mining Claw > --- INVENTORY (1) ---- Light Cannon Peak State ------------ > --- POWER ------------ Light Nuclear Core > --- PROPULSION ------- Improved Hover Unit Improved Hover Unit Improved Hover Unit > --- UTILITY ---------- Improved Signal Interpreter Improved Terrain Scanner Weapon Shielding > --- WEAPON ----------- Rocket Launcher Mining Claw > --- INVENTORY -------- Light Cannon [Rating: 17] Favorites ----------- Power Ion Engine Engine Ion Engine Power Core Light Nuclear Core Propulsion Improved Hover Unit Hover Unit Improved Hover Unit Utility Improved Signal Interpreter Device Improved Terrain Scanner Processor Improved Signal Interpreter Protection Weapon Shielding Weapon Light Cannon Ballistic Gun Assault Rifle Ballistic Cannon Light Cannon Launcher Rocket Launcher Slashing Weapon Mining Claw Build | -11 -10 -10 -10 ------- Run | Scr Mat Min Exi Slots Evolved 5 | 1 4 . . Power . | . . . . Propulsion 2 | . 2 . . Utility 2 | . 2 . . Weapon 1 | 1 . . . Parts Attached 17 | 3 11 3 . Power 2 | 1 . 1 . Engine 1 | 1 . . . Core 1 | . . 1 . Reactor . | . . . . Propulsion 5 | . 5 . . Treads . | . . . . Leg . | . . . . Wheel . | . . . . Hover 5 | . 5 . . Flight . | . . . . Utility 4 | . 4 . . Device 2 | . 2 . . Storage . | . . . . Processor 1 | . 1 . . Hackware . | . . . . Protection 1 | . 1 . . Artifact . | . . . . Weapon 6 | 2 2 2 . Energy Gun . | . . . . Energy Cannon . | . . . . Ballistic Gun 2 | 2 . . . Ballistic Cannon 2 | . 2 . . Launcher 1 | . . 1 . Special Weapon . | . . . . Impact Weapon . | . . . . Slashing Weapon 1 | . . 1 . Piercing Weapon . | . . . . Special Melee Weapon . | . . . . Unidentified Prototypes . | . . . . Parts Lost 3 | . . . 3 Power 1 | . . . 1 Propulsion 2 | . . . 2 Utility . | . . . . Weapon . | . . . . Highest Loss Streak 2 | . . . 2 Average Slot Usage (%) 96 | . 88 100 92 Engine 9 | . 15 10 . Core 1 | . . . 7 Hover 30 | . 26 33 29 Device 10 | . 7 11 11 Processor 9 | . 5 11 11 Protection 9 | . 2 11 11 Ballistic Gun 3 | . 12 . . Ballistic Cannon 11 | . 17 11 . Launcher 2 | . . 1 11 Slashing Weapon 6 | . . 8 11 Naked Turns . | . . . . Heaviest Build 13 | 8 13 13 13 Greatest Support 29 | 8 29 29 29 Greatest Overweight (x) 1 | . 1 . . Average Overweight (x) . | . . . . Largest Inventory Capacity 1 | 1 1 1 1 Average Capacity . | . 1 1 1 Most Carried 1 | . 1 1 1 Average Carried . | . . 1 1 Final Capacity 1 | 1 1 1 1 Final Carried 1 | . 1 1 1 Class Distribution -------------------- 82% | Scout 17% | Mutant Dominant Class ---------------- Mutant | -10/Materials Scout | -10/Mines Scout | -10/Exiles Resources | -11 -10 -10 -10 ----------- Run | Scr Mat Min Exi Matter Collected 818 | 206 314 298 . Remotely . | . . . . Salvage Created 625 | . 242 376 7 Parts 70 | . 27 43 . Haulers Intercepted 1 | . 1 . . Recyclers Shooed . | . . . . Parts Field Recycled . | . . . . Retrieved Matter . | . . . . Parts Self-Destructed . | . . . . Prevented . | . . . . Kills | -11 -10 -10 -10 ------- Run | Scr Mat Min Exi Combat Hostiles Destroyed 26 | . 10 10 6 Melee 3 | . . 3 . Guns 6 | . 6 . . Cannons 11 | . 4 7 . AOE 6 | . . . 6 Classes Destroyed 9 | . 5 3 1 Worker 3 | . . 3 . Builder 5 | . 1 4 . Tunneler 1 | . . 1 . Hauler 1 | . 1 . . Watcher 3 | . 3 . . Swarmer 9 | . 6 3 . Grunt 9 | . 4 5 . Sentry 2 | . . 2 . Assembled 7 | . . . 7 Best Kill Streak 6 | . 5 4 6 Combat Bots Only 6 | . 3 3 6 Max Kills in Single Turn 3 | . 1 2 3 Gunslinging . | . . . . Exploded 3 | . . . 3 Melee 1 | . . 1 . Uniques/NPCs Destroyed . | . . . . Combat | -11 -10 -10 -10 -------- Run | Scr Mat Min Exi Damage Taken 1445 | . 252 276 917 Core 1087 | . 198 189 700 Absorbed by Shields 25 | . 25 . . Redirected to Core 676 | . 152 150 374 Core Remaining (%) 100 | 100 . . . Volleys Fired 58 | . 34 19 5 Largest 2 | . 2 2 1 Hottest 70 | . 70 70 33 Shots Fired 108 | . 68 35 5 Gun 33 | . 33 . . Cannon 70 | . 35 35 . Launcher 5 | . . . 5 Special . | . . . . Kinetic 103 | . 68 35 . Thermal . | . . . . Explosive 5 | . . . 5 Electromagnetic . | . . . . Robot Hit Streak 10 | . 5 7 10 Robot Miss Streak 4 | . 4 3 1 Penetration Max . | . . . . Secondary Targets . | . . . . Shots Hit Robots 110 | . 36 40 34 Core Hits 59 | . 17 20 22 Critical Hits 4 | . 1 3 . Critical Kills 2 | . . 2 . Critical Parts Destroyed 2 | . 1 1 . Melee Attacks 75 | . . 41 34 Impact . | . . . . Slashing 75 | . . 41 34 Piercing . | . . . . Sneak Attacks 11 | . . 11 . Combat Hostiles . | . . . . Follow-up Attacks . | . . . . Damage Inflicted 3212 | . 643 1359 1210 Guns 309 | . 309 . . Cannons 642 | . 224 418 . Explosions 628 | . 103 . 525 Melee 1626 | . . 941 685 Ramming 7 | . 7 . . Kinetic 951 | . 533 418 . Thermal 103 | . 103 . . Explosive 525 | . . . 525 Electromagnetic . | . . . . Impact . | . . . . Slashing 1626 | . . 941 685 Piercing . | . . . . Highest Corruption 3 | . 3 3 3 Average Corruption 2 | . 1 3 3 Corruption Purged . | . . . . Effects 25 | . 3 19 3 Message Errors 7 | . 1 4 2 Matter Fused 11 | . . 10 1 Heat Flow Errors 1 | . . 1 . Data Loss (minor) 4 | . 1 3 . Targeting Errors 2 | . 1 1 . Overload Shots . | . . . . Overflow Damage 236 | . 38 164 34 Projectiles . | . . . . Explosions 72 | . 38 . 34 Melee 164 | . . 164 . Knockbacks 4 | . . 4 . Impact . | . . . . Kinetic 4 | . . 4 . Secondary . | . . . . Self-Inflicted Damage 77 | . 77 . . Shots 1 | . 1 . . Rammed 1 | . 1 . . Targets Rammed 1 | . 1 . . Kicked . | . . . . Crushed . | . . . . Highest Temperature 251 | . 21 251 21 Average Temperature 62 | . 9 76 12 Received Heat Transfer 114 | . 18 96 . Siege Activations . | . . . . Robots Corrupted . | . . . . Combat Hostiles . | . . . . Parts Fried . | . . . . Impact Corruptions . | . . . . Robots Melted . | . . . . Combat Hostiles . | . . . . Parts Melted . | . . . . Heat Transferred 100 | . 100 . . Parts Sabotaged . | . . . . Parts Stolen . | . . . . Parts Stripped . | . . . . Power Chain Reactions . | . . . . Missiles Intercepted . | . . . . Alert | -11 -10 -10 -10 ------- Run | Scr Mat Min Exi Peak Influence 435 | . 435 374 . Initial 169 | . . 169 . Average 230 | . 265 222 . Maximum Alert Level 2 | . 2 1 . Low Security (%) 55 | 100 35 61 . Level 1 42 | . 56 38 . Level 2 2 | . 8 . . Level 3 . | . . . . Level 4 . | . . . . Level 5 . | . . . . High Security . | . . . . Max Security . | . . . . Squads Dispatched 4 | . 3 1 . Investigation 3 | . 2 1 . Extermination . | . . . . Reinforcement 1 | . 1 . . Assault . | . . . . Garrison . | . . . . Intercept . | . . . . Construction Impeded . | . . . . Haulers Reinforced . | . . . . Stealth | -11 -10 -10 -10 --------- Run | Scr Mat Min Exi Distress Signals . | . . . . Communications Jammed . | . . . . Distress Signals . | . . . . Times Spotted 30 | . 14 9 7 Peak Tracking Total 5 | . 4 2 5 Tactical Retreats . | . . . . Traps | -11 -10 -10 -10 ------- Run | Scr Mat Min Exi Traps Triggered 2 | . 2 . . Indirectly . | . . . . Trap Hack Attempts . | . . . . Triggered . | . . . . Disarmed . | . . . . Reprogrammed . | . . . . Reused . | . . . . Traps Extracted . | . . . . Installed . | . . . . Triggered . | . . . . Machines | -11 -10 -10 -10 ---------- Run | Scr Mat Min Exi Machines Disabled 6 | . 2 1 3 Max in Single Turn 2 | . 1 1 2 Machines Sabotaged . | . . . . Garrisons Compromised . | . . . . Overloaded Fab Kills . | . . . . Fab Network Shutdowns . | . . . . Hacking | -11 -10 -10 -10 --------- Run | Scr Mat Min Exi Machines Accessed 6 | . 3 1 2 Terminals 2 | . 1 1 . Fabricators . | . . . . Repair Stations . | . . . . Recycling Units 2 | . 2 . . Scanalyzers . | . . . . Garrison Access . | . . . . Total Hacks 12 | . 7 3 2 Successful 10 | . 6 2 2 Failed 2 | . 1 1 . Catastrophic . | . . . . Database Lockouts . | . . . . Manual 7 | . 3 3 1 Terminals 6 | . 3 3 . Fabricators . | . . . . Repair Stations . | . . . . Recycling Units 4 | . 4 . . Scanalyzers . | . . . . Garrison Access . | . . . . Terminal Hacks 3 | . 1 . 2 Record 1 | . . . 1 Branch Access Points 1 | . 1 . . EX-Prototype ID Bank 1 | . . . 1 Fabricator Hacks . | . . . . Repair Station Hacks . | . . . . Recycling Unit Hacks 2 | . 2 . . Report Inventory 2 | . 2 . . Scanalyzer . | . . . . Garrison Access Hacks . | . . . . Unauthorized Hacks 5 | . 3 2 . Terminals 3 | . 1 2 . Botnet 1 | . 1 . . Disrupt 1 | . . 1 . Search 1 | . . 1 . Fabricators . | . . . . Repair Stations . | . . . . Recycling Units 2 | . 2 . . Tunnel 2 | . 2 . . Scanalyzers . | . . . . Garrison Access . | . . . . Data Cores Recovered . | . . . . Used . | . . . . Hacking Detections 3 | . 3 . . Full Trace Events . | . . . . Feedback Events . | . . . . Feedback Blocked . | . . . . Robot Schematics Acquired . | . . . . Robots Built . | . . . . Matter . | . . . . Time . | . . . . Total Robot Build Rating . | . . . . Part Schematics Acquired . | . . . . Parts Built . | . . . . Matter . | . . . . Time . | . . . . Total Part Build Rating . | . . . . Parts Repaired . | . . . . Time . | . . . . Parts Recycled . | . . . . Recycled Matter . | . . . . Retrieved Matter . | . . . . Retrieved Components . | . . . . Parts Scanalyzed . | . . . . Part Schematics Acquired . | . . . . Parts Damaged . | . . . . Bothacking | -11 -10 -10 -10 ------------ Run | Scr Mat Min Exi Used RIF Installer . | . . . . Robots Hacked . | . . . . Non-combat . | . . . . Combat . | . . . . Robot Hacks Applied . | . . . . Relay Couplers Released . | . . . . Robots Rewired . | . . . . Allies Hacked . | . . . . Hacks Repelled . | . . . . Allies | -11 -10 -10 -10 -------- Run | Scr Mat Min Exi Total Allies . | . . . . Largest Group . | . . . . Highest-Rated Group . | . . . . Highest-Rated Ally . | . . . . Total Orders . | . . . . Ally Attacks . | . . . . Total Damage . | . . . . Kills . | . . . . Allies Corrupted . | . . . . Allies Melted . | . . . . Intel | -11 -10 -10 -10 ------- Run | Scr Mat Min Exi Robot Analysis Total . | . . . . Derelict Logs Recovered 2 | . . 2 . Drone Launches . | . . . . Drone Recoveries . | . . . . Exploration | -11 -10 -10 -10 ------------- Run | Scr Mat Min Exi Turns Passed 1607 | 21 377 992 217 Spaces Moved 1351 | 33 417 695 206 Core 69 | 33 36 . . Treads . | . . . . Legs . | . . . . Wheels . | . . . . Hover 1282 | . 381 695 206 Flight . | . . . . Fastest Speed 50 | 50 50 52 52 Average Speed 52 | 50 54 52 52 Slowest Speed 100 | 50 100 52 52 Overloaded Moves . | . . . . Propulsion Burnouts . | . . . . Robots Hopped . | . . . . Cave-ins Triggered . | . . . . Exploration Rate (%) 55 | 2 68 99 51 Regions Visited 3 Branch Regions 2 Pre-discovered Areas 5 | . 2 2 1 Known Exits Taken 2 | . 1 1 . Unknown Exits Taken 1 | 1 . . . Scrap Searched 2 | . . 2 . Spaces Dug 16 | . . 16 . Terrain Destroyed 34 | . . 16 18 Melee 16 | . . 16 . Projectile . | . . . . AOE 18 | . . . 18 Terrain Rammed . | . . . . Walls Destroyed . | . . . . Machines Disabled . | . . . . Actions | -11 -10 -10 -10 --------- Run | Scr Mat Min Exi Total 1983 | 35 494 1209 245 Wait 451 | . 16 435 . Move 1348 | 32 416 694 206 Hop . | . . . . Pick Up 2 | . 1 1 . Fast Attach 14 | 3 9 2 . Attach . | . . . . Detach . | . . . . Swap 3 | . 2 1 . Drop 8 | . 5 3 . Fire 58 | . 34 19 5 Melee 75 | . . 41 34 Ram 1 | . 1 . . Kick . | . . . . Crush . | . . . . Escape Stasis . | . . . . Rewire . | . . . . Trap . | . . . . Miscellaneous 23 | . 10 13 . Route ------- -11/Scrapyard -10/Materials (discovered 4 exits: *Mat x2 / *Min x2) -10/Mines (discovered 3 exits: *Mat x2 / *Exi) -10/Exiles History --------- Turn | Location | Event 6 | -11/Scrapyard | Discovered new exit (range 16) 6 | -11/Scrapyard | Upgraded with Weapon slot (x1) 22 | -11/Scrapyard | Entered Materials 111 | -10/Materials | Discovered new exit (range 11) 134 | -10/Materials | Discovered new exit (range 12) 135 | -10/Materials | Upgraded with Propulsion slot (x1) 193 | -10/Materials | Discovered new exit (range 13) 223 | -10/Materials | Upgraded with Utility slot (x2) 242 | -10/Materials | Identified exit to Materials 249 | -10/Materials | Reached level 2 274 | -10/Materials | Upgraded with Propulsion slot (x1) 367 | -10/Materials | Identified exit to Mines 399 | -10/Materials | Entered Mines 429 | -10/Mines | Deemed a non-threat by the Exiles lab entrance 430 | -10/Mines | Discovered new exit (range 5) 487 | -10/Mines | Learned location of Zion (-6) 494 | -10/Mines | Received a Rocket Launcher from a helpful Derelict 499 | -10/Mines | Found a hidden stash of uninstalled traps 543 | -10/Mines | Discovered exit to Materials (range 8) 573 | -10/Mines | Build established: Scout 579 | -10/Mines | Discovered exit to Materials (range 11) 606 | -10/Mines | Reached level 3 1391 | -10/Mines | Identified exit to Exiles 1391 | -10/Mines | Entered Exiles 1404 | -10/Exiles | Met 8R-AWN 1413 | -10/Exiles | Met EX-HEX 1427 | -10/Exiles | Met EX-BIN 1433 | -10/Exiles | Aligned with FarCom system 1434 | -10/Exiles | Given EX-Vault access code 1446 | -10/Exiles | Opened EX-Vault 1458 | -10/Exiles | Warned to stay clear of 0b10 Research branches 1472 | -10/Exiles | Met EX-DEC 1497 | -10/Exiles | Attacked by the Exiles 1532 | -10/Exiles | Core integrity fell below 50% 1575 | -10/Exiles | Core integrity fell below 20% 1608 | -10/Exiles | Destroyed by 8R-AWN with 8R-AWN's Boregun Last Messages --------------- 01547_ Critical hit. 01547_ Imp. Hover Unit destroyed. 01547_ Penetrated by HV Slug. 01549_ HV Slug penetrates Wall. 01549_ Penetrated by HV Slug. 01561_ HV Slug penetrates Wall. 01565_ Penetrated by HV Slug. 01565_ HV Slug penetrates Wall. 01569_ Penetrated by HV Slug. 01577_ /S#QC4N E6C 01585_ The unstable cave ceiling collapses. 01587_ Penetrated by HV Slug. 01590_ The unstable cave ceiling collapses. 01591_ Penetrated by HV Slug. 01598_ Critical hit. 01598_ Imp. Hover Unit destroyed. 01599_ WXB6PWV1XKNFMUXHBZG|FATSC#|J 01601_ Penetrated by HV Slug. Map ----- +----------------------------------------------------+ | """#? ???????????????????????????????????? | | """#? "????#?????????????????????????????? | | """""?????#??????????????????????????????? | | """###???????????????????????????????????? | | "X" """""? ??#???????????????????????????????? | | """ #???"???#?#?#?????????????????????????? | | """""""""# ?"?????????#????????????????????????? | | ########### "??#????###????#????????????????????? | | ##??##???#?#???####?#??#?#????#?????#???????????? | | ########?#?####??###?#######???#???#????#???????? | | ###?####??#??##?##?###########???##?#??#??##????? | | ##?############################???????#????????? | | #####"""" """"##?###############?#????????????? | | " """ """"##################????#?#??????? | | "" " #?############?###?????????#??? | | " """###################?####????#?? | | a"####################??#????#?## | | " "#######?#####" ####????#?#?### | | "###########" #####?????????# | | ""#########" #####??##?#???# | | " "######## ####??#??#?### | | ##""" ## ## ########## | | ?##""" ## ## #""""## | | ###"""" #;# * | | ###"" ## * | | ##"""" @ #### | | "" g ""###"""""#### | | #"""###########?#### | | #################??###### | | #######?#?####?###??????## | | ###################???#?#? | | "" "###########?#####?????????? | | ??"" " " # ########?#####?##?????????? | | ???##""" "" ######?###########????###?? | | ????###"""??# ## # #####?#########?#?#???????#? | | ??????##?#???##### ####################??????#?#?# | | ?????##???????#######?########?######???#??????#?? | | ???????#?????#?###?#################???#??#??##??# | | ????????????????#############??#?#????#??????#???? | | ??????????????#???#######?#######???#???#????????# | | ??????????????#?????#########?#???????????#??????? | | ?????????????????????????#?????????????????????#?? | | ?????????????????????????????????????????????????? | | ?????????????????????????????????????????????????? | | ?????????????????????????????????????????????????? | | ?????????????????????????????????????????????????? | | ?????????????????????????????????????????????????? | | ?????????????????????????????????????????????????? | | ?????????????????????????????????????????????????? | | ?????????????????????????????????????????????????? | +----------------------------------------------------+ Best States ------------- Heat Dissipation 25 Energy Generation 14 Energy Capacity 250 Matter Stores 300 Matter Capacity 300 Sight Range 16 Robot Scan Range 14 Terrain Scan Range 16 Terrain Scan Density 210 Weapon Shielding 33 Evasion (%) 54 Item Schematics ----------------- None Robot Schematics ------------------ None Fabricated ------------ Nothing Alien Tech Used ----------------- None Achievements -------------- None Challenges ------------ None RPGLIKE | -11 -10 -10 -10 --------- Run | Scr Mat Min Exi Levels Raised 2 | . 1 1 . XP Earned 6935 | 3000 1825 1760 350 XP Spent 5970 | 850 3615 1400 105 Upgrades 23 | 3 13 4 3 Propulsion Slot 2 | . 2 . . Utility Slot 2 | . 2 . . Weapon Slot 1 | 1 . . . Core Integrity 3 | . . . 3 Mass Support 1 | 1 . . . Inventory Capacity 1 | 1 . . . Sensor Range 7 | . 7 . . Terrain Scan Density 2 | . 2 . . Melee Accuracy 4 | . . 4 . Protomatter Created 219 | . 98 121 . Integrity Restored 412 | . 200 212 . Core 332 | . 197 135 . Parts 80 | . 3 77 . Protomatter Decayed 49 | . . 49 . Game ------ Seed BoreGhostCharger Manual? 0 Play Time 00:15:00 Cumulative 262.3 hours Start 2020.09.19 @ 20:13:38 End 2020.09.19 @ 20:26:43 Sessions 1 Manual Loads 0 Difficulty Rogue Special Mode Winter2019/RPGLIKE Game No. 265 Rogue 265 Adventurer 0 Explorer 0 Win Type - Total 14 Types 10/0/3/1/0/0/0/0/0 Lore% 82 Gallery% 90 Achievement% 73 Wizard Run 0 Options --------- ASCII 0 Keyboard 1 Movement Numpad Keybinds 0 Fullscreen 1 Font 18/SmallcapsGlow Map View 76x50 Tactical HUD 1 Map Filters NONE Filters NONE Steam 1 RUN: c77a50c9-41bc-479b-b6fd-588347d6df65